[Event "African Online-ch Women 2021"]
[Site "Online"]
[Date "2021.02.01"]
[Round "2.15"]
[White "Karania, Saloni"]
[Black "Shah, Riya"]
[Result "0-1"]
[ECO "A35"]
[WhiteElo "1304"]
[BlackElo "1559"]
[Annotator "NA RC"]
[PlyCount "136"]
[EventDate "2021.02.01"]
[EventType "swiss"]
[EventCountry "NET"]
[SourceTitle "playchess.com"]
[Source "ChessBase"]
[SourceQuality "1"]
[TimeControl "1500+10"]

1. d4 {[%emt 0:00:00]} g6 {[%emt 0:00:04]} 2. c4 {[%emt 0:00:19]} Bg7 {[%emt 0:00:04]} 3. Nf3 {[%emt 0:00:21]} c5 {[%emt 0:00:05]} 4. e3 {[%emt 0:00:35]} Nc6 {[%emt 0:00:56]} 5. Nc3 {[%emt 0:01:05]} Qb6 {[%emt 0:01:28]} 6. Nd5 {[%emt 0:01:37]} Qd8 {[%emt 0:00:11]} 7. Rb1 {[%emt 0:01:03]} e6 {[%emt 0:00:37]} 8. Nc3 {[%emt 0:00:19]} cxd4 {[%emt 0:00:33]} 9. exd4 {[%emt 0:00:20]} Nf6 {[%emt 0:00:54]} 10. b3 {[%emt 0:00:40]} Qa5 {[%emt 0:01:27]} 11. Bd2 {[%emt 0:01:10]} Qd8 {[%emt 0:00:50]} 12. a3 {[%emt 0:01:16]} d5 {[%emt 0:00:21]} 13. c5 {[%emt 0:01:45]} Ne4 {[%emt 0:00:13]} 14. Nxe4 {[%emt 0:00:49]} dxe4 {[%emt 0:00:04]} 15. Ng5 {[%emt 0:00:26]} Qxd4 {[%emt 0:00:31]} 16. b4 {[%emt 0:00:57]} b6 {[%emt 0:02:03]} 17. Bb5 {[%emt 0:01:03]} Bd7 {[%emt 0:00:24]} 18. O-O {[%emt 0:00:29]} O-O {[%emt 0:00:19]} 19. Qe2 {[%emt 0:01:10]} a6 {[%emt 0:03:07]} 20. Bxc6 {[%emt 0:01:59]} Bxc6 {[%emt 0:00:05]} 21. Be3 {[%emt 0:00:37]} Qd3 {[%emt 0:00:58]} 22. Qa2 {[%emt 0:00:42]} Bd5 {[%emt 0:00:23]} 23. Qd2 {[%emt 0:01:25]} Bc4 {[%emt 0:00:58]} 24. Qc1 {[%emt 0:01:08]} b5 {[%emt 0:02:54]} 25. Rd1 {[%emt 0:00:24]} Qc3 {[%emt 0:00:05]} 26. Nxe4 {[%emt 0:00:15]} Qxc1 {[%emt 0:00:05]} 27. Rbxc1 {[%emt 0:00:09]} Rad8 {[%emt 0:00:24]} 28. Nd2 {[%emt 0:01:22]} Bb2 {[%emt 0:00:18]} 29. Rb1 {[%emt 0:00:29]} Bxa3 {[%emt 0:02:20]} 30. Nxc4 {[%emt 0:00:16]} bxc4 {[%emt 0:00:03]} 31. Bg5 {[%emt 0:00:59]} Rxd1+ {[%emt 0:00:14]} 32. Rxd1 {[%emt 0:00:11]} Bxb4 {[%emt 0:00:03]} 33. Be7 {[%emt 0:00:09]} Rc8 {[%emt 0:00:11]} 34. g3 {[%emt 0:00:41]} Bxc5 {[%emt 0:00:12]} 35. Bf6 {[%emt 0:00:35]} Bf8 {[%emt 0:00:19]} 36. Ra1 {[%emt 0:00:22]} Bg7 {[%emt 0:00:37]} 37. Bxg7 {[%emt 0:00:04]} Kxg7 {[%emt 0:00:02]} 38. Rxa6 {[%emt 0:00:03]} Kf6 {[%emt 0:00:03]} 39. Ra1 {[%emt 0:00:11]} Ke5 {[%emt 0:00:03]} 40. Rc1 {[%emt 0:00:04]} f5 {[%emt 0:00:03]} 41. Kf1 {[%emt 0:00:06]} Kd4 {[%emt 0:00:02]} 42. Ke2 {[%emt 0:00:06]} e5 {[%emt 0:00:04]} 43. Kd2 {[%emt 0:00:11]} Rd8 {[%emt 0:00:08]} 44. Ke2 {[%emt 0:00:14]} Kc5 {[%emt 0:00:04]} 45. f3 {[%emt 0:00:08]} Rd3 {[%emt 0:00:07]} 46. h4 {[%emt 0:00:36]} Kd4 {[%emt 0:00:04]} 47. f4 {[%emt 0:00:29]} exf4 {[%emt 0:00:14]} 48. gxf4 {[%emt 0:00:07]} Rh3 {[%emt 0:00:12]} 49. Rd1+ {[%emt 0:00:05]} Kc5 {[%emt 0:00:05]} 50. Rc1 {[%emt 0:00:08]} Rxh4 {[%emt 0:00:06]} 51. Ke3 {[%emt 0:00:09]} Rh3+ {[%emt 0:00:02]} 52. Kd2 {[%emt 0:00:03]} Rf3 {[%emt 0:00:03]} 53. Kc2 {[%emt 0:00:17]} Rxf4 {[%emt 0:00:06]} 54. Re1 {[%emt 0:00:13]} g5 {[%emt 0:00:04]} 55. Re5+ {[%emt 0:00:02]} Kd4 {[%emt 0:00:02]} 56. Re7 {[%emt 0:00:11]} g4 {[%emt 0:00:02]} 57. Rxh7 {[%emt 0:00:09]} g3 {[%emt 0:00:10]} 58. Rd7+ {[%emt 0:00:04]} Ke3 {[%emt 0:00:05]} 59. Re7+ {[%emt 0:00:03]} Kf3 {[%emt 0:00:02]} 60. Rg7 {[%emt 0:00:04]} g2 {[%emt 0:00:02]} 61. Kc3 {[%emt 0:00:05]} Rg4 {[%emt 0:00:03]} 62. Rxg4 {[%emt 0:00:32]} fxg4 {[%emt 0:00:05]} 63. Kxc4 {[%emt 0:00:05]} g1=Q {[%emt 0:00:04]} 64. Kd5 {[%emt 0:00:03]} Qe1 {[%emt 0:00:03]} 65. Kc5 {[%emt 0:00:08]} Qd2 {[%emt 0:00:01]} 66. Kc4 {[%emt 0:00:05]} Ke4 {[%emt 0:00:02]} 67. Kb5 {[%emt 0:00:02]} Qc3 {[%emt 0:00:02]} 68. Kb6 {[%emt 0:00:02]} Kd5 {[%emt 0:00:02]} 0-1

[Event "African Online-ch Women 2021"]
[Site "Online"]
[Date "2021.02.01"]
[Round "3.4"]
[White "McPherson, Naleli"]
[Black "Caxita, Esperanca"]
[Result "0-1"]
[ECO "B01"]
[WhiteElo "1303"]
[BlackElo "1882"]
[Annotator "NA RC"]
[PlyCount "124"]
[EventDate "2021.02.01"]
[EventType "swiss"]
[EventCountry "NET"]
[SourceTitle "playchess.com"]
[Source "ChessBase"]
[SourceQuality "1"]
[TimeControl "1500+10"]

1. e4 {[%emt 0:00:00]} d5 {[%emt 0:00:06]} 2. exd5 {[%emt 0:00:13]} Qxd5 {[%emt 0:00:03]} 3. d4 {[%emt 0:00:18]} Nf6 {[%emt 0:00:09]} 4. Nf3 {[%emt 0:00:34]} Bg4 {[%emt 0:00:12]} 5. Be2 {[%emt 0:00:19]} e6 {[%emt 0:00:11]} 6. c4 {[%emt 0:00:30]} Qd8 {[%emt 0:00:32]} 7. O-O {[%emt 0:00:31]} c6 {[%emt 0:00:20]} 8. Nc3 {[%emt 0:00:31]} Bd6 {[%emt 0:00:10]} 9. Bg5 {[%emt 0:00:33]} Nbd7 {[%emt 0:00:08]} 10. d5 {[%emt 0:00:44]} Qc7 {[%emt 0:01:15]} 11. h3 {[%emt 0:00:30]} Bxf3 {[%emt 0:00:38]} 12. Bxf3 {[%emt 0:00:11]} O-O {[%emt 0:00:15]} 13. Rc1 {[%emt 0:00:50]} Rfe8 {[%emt 0:00:29]} 14. Qd2 {[%emt 0:00:35]} h6 {[%emt 0:00:45]} 15. Be3 {[%emt 0:00:32]} Ne5 {[%emt 0:00:22]} 16. Be2 {[%emt 0:00:38]} Rad8 {[%emt 0:00:06]} 17. c5 {[%emt 0:04:20]} Bf8 {[%emt 0:01:53]} 18. d6 {[%emt 0:00:32]} Qb8 {[%emt 0:00:39]} 19. Na4 {[%emt 0:00:43]} Ned7 {[%emt 0:00:25]} 20. b4 {[%emt 0:00:38]} Nd5 {[%emt 0:00:49]} 21. Bf3 {[%emt 0:01:09]} N7f6 {[%emt 0:00:26]} 22. a3 {[%emt 0:00:48]} Nxe3 {[%emt 0:00:20]} 23. fxe3 {[%emt 0:00:40]} Qc8 {[%emt 0:00:33]} 24. Rfe1 {[%emt 0:01:11]} e5 {[%emt 0:00:24]} 25. e4 {[%emt 0:00:32]} Qe6 {[%emt 0:00:10]} 26. Nc3 {[%emt 0:00:40]} Nh7 {[%emt 0:01:48]} 27. Bg4 {[%emt 0:00:43]} Qg6 {[%emt 0:00:14]} 28. Bf5 {[%emt 0:00:34]} Qg3 {[%emt 0:00:08]} 29. Re3 {[%emt 0:00:50]} Qg5 {[%emt 0:00:06]} 30. Qe2 {[%emt 0:00:31]} g6 {[%emt 0:00:56]} 31. Qe1 {[%emt 0:00:42]} Bg7 {[%emt 0:03:24]} 32. Rg3 {[%emt 0:00:49]} Qh4 {[%emt 0:01:14]} 33. Bc8 {[%emt 0:01:23]} b6 $2 {[%emt 0:01:06]} (33... Rxc8 $14 34. d7 {[%mdl 64] Double Attack} Nf8 35. dxc8=N (35. dxe8=B Rxe8 36. Rd3 Qg5 $16) 35... Rxc8 36. Rd3 Qe7 $16) 34. d7 {[%emt 0:00:58]} Re6 {[%emt 0:00:17]} 35. cxb6 {[%emt 0:00:57]} axb6 {[%emt 0:00:05]} 36. Na4 {[%emt 0:00:12]} b5 {[%emt 0:01:43]} 37. Nc5 {[%emt 0:00:18]} Rd6 {[%emt 0:00:49]} 38. Nb7 {[%emt 0:00:26]} R6xd7 {[%emt 0:00:38]} (38... R8xd7 $16 39. Nxd6 (39. Bxd7 Rxd7 40. Na5 Ng5 $16) 39... Rxd6) 39. Nxd8 {[%emt 0:00:33]} Rxd8 {[%emt 0:00:04]} 40. Bb7 {[%emt 0:00:41]} Nf6 {[%emt 0:01:31]} 41. Bxc6 {[%emt 0:00:18]} Rc8 {[%emt 0:00:07]} 42. Rgc3 {[%emt 0:00:32]} Qf4 {[%emt 0:00:50]} 43. Rf3 {[%emt 0:00:30]} Qg5 {[%emt 0:00:19]} 44. Rcc3 {[%emt 0:00:14]} Nh5 {[%emt 0:00:58]} 45. Bxb5 {[%emt 0:00:19]} Rd8 {[%emt 0:00:03]} 46. Bf1 {[%emt 0:00:57]} Nf6 {[%emt 0:00:22]} 47. Qc1 {[%emt 0:00:12]} Nxe4 {[%emt 0:00:21]} 48. Qxg5 {[%emt 0:00:12]} hxg5 {[%emt 0:00:03]} 49. Rc1 {[%emt 0:00:28]} f5 {[%emt 0:00:24]} 50. b5 {[%emt 0:00:13]} Bf8 {[%emt 0:00:09]} 51. Rb3 {[%emt 0:00:23]} Bc5+ {[%emt 0:00:28]} 52. Kh2 {[%emt 0:00:11]} Rc8 {[%emt 0:00:06]} 53. Bc4+ {[%emt 0:00:23]} Kg7 {[%emt 0:00:12]} 54. b6 {[%emt 0:00:04]} Nd2 {[%emt 0:00:07]} 55. b7 {[%emt 0:00:20]} Rb8 {[%emt 0:00:09]} 56. Rb5 {[%emt 0:00:10]} Bd6 {[%emt 0:00:10]} 57. Rc2 {[%emt 0:00:13]} e4+ {[%emt 0:00:05]} 58. Kg1 {[%emt 0:00:14]} e3 {[%emt 0:00:03]} 59. a4 {[%emt 0:00:18]} Bg3 {[%emt 0:00:14]} 60. Be2 {[%emt 0:00:09]} Ne4 {[%emt 0:00:58]} 61. Rc8 {[%emt 0:00:06]} Bf2+ {[%emt 0:00:20]} 62. Kf1 {[%emt 0:00:11]} (62. Kh2 $18) 62... Nd2# {[%emt 0:00:07]} 0-1

[Event "African Online-ch Women 2021"]
[Site "Online"]
[Date "2021.02.01"]
[Round "3.5"]
[White "Botlhole, Kgalalelo"]
[Black "Latreche, Khadidja"]
[Result "0-1"]
[ECO "A37"]
[WhiteElo "1705"]
[BlackElo "1900"]
[Annotator "RC"]
[PlyCount "100"]
[EventDate "2021.02.01"]
[EventType "swiss"]
[EventCountry "NET"]
[SourceTitle "playchess.com"]
[Source "ChessBase"]
[SourceQuality "1"]
[TimeControl "1500+10"]

1. c4 {[%emt 0:00:00]} c5 {[%emt 0:00:08]} 2. g3 {[%emt 0:00:11]} Nc6 {[%emt 0:00:02]} 3. Bg2 {[%emt 0:00:02]} g6 {[%emt 0:00:02]} 4. Nf3 {[%emt 0:00:04]} Bg7 {[%emt 0:00:03]} 5. O-O {[%emt 0:00:02]} e6 {[%emt 0:00:01]} 6. e3 {[%emt 0:00:01]} Nge7 {[%emt 0:00:10]} 7. d4 {[%emt 0:00:03]} cxd4 {[%emt 0:00:04]} 8. exd4 {[%emt 0:00:03]} d5 {[%emt 0:00:06]} 9. cxd5 {[%emt 0:00:07]} exd5 {[%emt 0:00:03]} 10. Nc3 {[%emt 0:00:05]} O-O {[%emt 0:00:12]} 11. Bg5 {[%emt 0:00:54]} Be6 {[%emt 0:01:21]} 12. Be3 {[%emt 0:00:35]} Qb6 {[%emt 0:01:22]} 13. Qb3 {[%emt 0:02:00]} Qxb3 {[%emt 0:02:15]} 14. axb3 {[%emt 0:00:03]} Bg4 {[%emt 0:01:00]} 15. h3 {[%emt 0:02:19]} Bf5 {[%emt 0:00:46]} 16. Nh4 {[%emt 0:06:20]} Bd3 {[%emt 0:00:43]} 17. Rfe1 {[%emt 0:00:10]} Rfd8 {[%emt 0:02:58]} 18. Ra3 {[%emt 0:02:51]} Bf8 {[%emt 0:04:59]} 19. Raa1 {[%emt 0:00:45]} Nb4 {[%emt 0:00:26]} 20. Ra4 {[%emt 0:01:22]} Nec6 {[%emt 0:00:34]} 21. Bg5 {[%emt 0:01:08]} Rd7 {[%emt 0:00:22]} 22. Re3 {[%emt 0:01:49]} h6 {[%emt 0:00:33]} 23. Bf6 {[%emt 0:00:17]} Bc2 {[%emt 0:00:48]} 24. Ne2 {[%emt 0:01:17]} Nd3 {[%emt 0:02:03]} 25. Rxd3 {[%emt 0:02:47]} Bxd3 {[%emt 0:00:05]} 26. Nc3 {[%emt 0:00:07]} b5 {[%emt 0:01:27]} 27. Ra1 {[%emt 0:02:10]} Nb4 {[%emt 0:00:07]} 28. Ra5 {[%emt 0:00:35]} a6 {[%emt 0:00:14]} 29. Nf3 {[%emt 0:00:12]} Bd6 {[%emt 0:01:35]} 30. Ne5 {[%emt 0:00:40]} Bxe5 {[%emt 0:00:13]} 31. Bxe5 {[%emt 0:00:06]} Re8 {[%emt 0:02:08]} 32. Ra3 {[%emt 0:00:27]} Re6 {[%emt 0:00:19]} 33. Na2 {[%emt 0:00:47]} Nc2 {[%emt 0:00:18]} 34. Ra5 {[%emt 0:00:05]} f6 {[%emt 0:00:17]} 35. Bf4 {[%emt 0:00:05]} Nxd4 {[%emt 0:00:41]} 36. Nb4 {[%emt 0:00:06]} Be4 {[%emt 0:00:44]} 37. Bxe4 {[%emt 0:00:10]} dxe4 {[%emt 0:00:04]} 38. Rxa6 {[%emt 0:00:16]} Rxa6 {[%emt 0:00:04]} 39. Nxa6 {[%emt 0:00:02]} Ne2+ {[%emt 0:00:18]} 40. Kg2 {[%emt 0:00:05]} Nxf4+ {[%emt 0:00:04]} 41. gxf4 {[%emt 0:00:02]} Rd2 {[%emt 0:00:10]} 42. Kf1 {[%emt 0:00:18]} Rxb2 {[%emt 0:00:04]} 43. Nc5 {[%emt 0:00:02]} f5 {[%emt 0:00:06]} 44. h4 {[%emt 0:00:03]} Kf7 {[%emt 0:00:06]} 45. Ke1 {[%emt 0:00:02]} Ke7 {[%emt 0:00:05]} 46. Kf1 {[%emt 0:00:20]} Kd6 {[%emt 0:00:04]} 47. Nb7+ {[%emt 0:00:06]} Kd5 {[%emt 0:00:08]} 48. Na5 {[%emt 0:00:10]} Kd4 {[%emt 0:00:10]} 49. b4 {[%emt 0:00:08]} Kc3 {[%emt 0:00:13]} 50. Nc6 {[%emt 0:00:04]} Rxb4 {[%emt 0:00:04]} 0-1

[Event "African Online-ch Women 2021"]
[Site "Online"]
[Date "2021.02.01"]
[Round "3.6"]
[White "Rodriguez Guevara, Celia M."]
[Black "Joao, Delfina"]
[Result "1-0"]
[ECO "C00"]
[WhiteElo "1849"]
[BlackElo "1727"]
[Annotator "NA RC"]
[PlyCount "135"]
[EventDate "2021.02.01"]
[EventType "swiss"]
[EventCountry "NET"]
[SourceTitle "playchess.com"]
[Source "ChessBase"]
[SourceQuality "1"]
[TimeControl "1500+10"]

1. e4 {[%emt 0:00:00]} e6 {[%emt 0:00:05]} 2. d3 {[%emt 0:00:06]} d5 {[%emt 0:00:04]} 3. Nd2 {[%emt 0:00:07]} Nf6 {[%emt 0:00:15]} 4. Ngf3 {[%emt 0:00:14]} c5 {[%emt 0:00:42]} 5. g3 {[%emt 0:00:03]} Nc6 {[%emt 0:00:11]} 6. Bg2 {[%emt 0:00:04]} Be7 {[%emt 0:00:37]} 7. O-O {[%emt 0:00:05]} O-O {[%emt 0:00:10]} 8. Re1 {[%emt 0:00:18]} Qc7 {[%emt 0:00:43]} 9. c3 {[%emt 0:00:11]} dxe4 {[%emt 0:01:31]} 10. Nxe4 {[%emt 0:00:56]} Nxe4 {[%emt 0:00:21]} 11. dxe4 {[%emt 0:01:20]} e5 {[%emt 0:00:45]} 12. Qc2 {[%emt 0:01:50]} Be6 {[%emt 0:00:23]} 13. Be3 {[%emt 0:01:32]} Rad8 {[%emt 0:00:15]} 14. Rad1 {[%emt 0:00:10]} b6 {[%emt 0:00:18]} 15. b3 {[%emt 0:01:03]} Na5 {[%emt 0:02:29]} 16. Rd2 {[%emt 0:00:43]} Rxd2 {[%emt 0:00:08]} 17. Bxd2 {[%emt 0:00:10]} Rd8 {[%emt 0:00:24]} 18. Ng5 {[%emt 0:01:44]} Bxg5 {[%emt 0:01:35]} 19. Bxg5 {[%emt 0:00:03]} f6 {[%emt 0:00:03]} 20. Be3 {[%emt 0:00:08]} Qd6 {[%emt 0:00:29]} 21. Bf3 {[%emt 0:02:12]} Qd3 {[%emt 0:01:08]} 22. Qc1 {[%emt 0:00:17]} Qb5 {[%emt 0:01:30]} 23. Rd1 {[%emt 0:00:59]} Rd7 {[%emt 0:00:19]} 24. Rxd7 {[%emt 0:00:39]} Qxd7 {[%emt 0:00:20]} 25. Qd1 {[%emt 0:00:18]} Kf7 {[%emt 0:01:12]} 26. Qxd7+ {[%emt 0:02:12]} Bxd7 {[%emt 0:00:07]} 27. Be2 {[%emt 0:00:04]} Ke6 {[%emt 0:00:41]} 28. f4 {[%emt 0:00:08]} Bc6 {[%emt 0:02:32]} 29. Bd3 {[%emt 0:01:21]} Nb7 {[%emt 0:00:08]} 30. Kf2 {[%emt 0:00:52]} Nd6 {[%emt 0:02:11]} 31. fxe5 {[%emt 0:01:16]} fxe5 {[%emt 0:00:18]} 32. Kf3 {[%emt 0:00:06]} Kf6 {[%emt 0:00:33]} 33. h4 {[%emt 0:00:20]} h6 {[%emt 0:00:16]} 34. Bf2 {[%emt 0:00:09]} g6 {[%emt 0:00:24]} 35. Ke3 {[%emt 0:00:04]} Bd7 {[%emt 0:00:31]} 36. Be2 {[%emt 0:00:10]} Bc6 {[%emt 0:00:08]} 37. Bd3 {[%emt 0:00:10]} Bb7 {[%emt 0:00:47]} 38. g4 {[%emt 0:00:40]} Bc8 {[%emt 0:00:21]} 39. Kf3 {[%emt 0:00:03]} Bd7 {[%emt 0:00:14]} 40. a4 {[%emt 0:00:37]} Be6 {[%emt 0:00:40]} 41. Bc2 {[%emt 0:00:30]} Bd7 {[%emt 0:00:56]} 42. a5 {[%emt 0:00:41]} Bc6 {[%emt 0:00:35]} 43. b4 {[%emt 0:01:13]} Nb7 {[%emt 0:02:06]} 44. a6 {[%emt 0:00:29]} Nd6 {[%emt 0:00:59]} 45. bxc5 {[%emt 0:00:04]} Nc4 {[%emt 0:01:38]} 46. cxb6 {[%emt 0:01:02]} axb6 {[%emt 0:00:05]} 47. a7 {[%emt 0:00:30]} b5 {[%emt 0:00:04]} 48. Bd3 {[%emt 0:00:30]} Nd6 {[%emt 0:00:12]} 49. Bc5 {[%emt 0:00:29]} Nc4 {[%emt 0:00:06]} 50. Ke2 {[%emt 0:00:31]} g5 {[%emt 0:00:07]} 51. hxg5+ {[%emt 0:00:09]} Kxg5 {[%emt 0:00:06]} 52. Kf3 {[%emt 0:00:33]} h5 {[%emt 0:00:06]} 53. gxh5 {[%emt 0:00:04]} Kxh5 {[%emt 0:00:03]} 54. Bxc4 {[%emt 0:00:28]} bxc4 {[%emt 0:00:07]} 55. Bd6 {[%emt 0:00:02]} Kg5 {[%emt 0:00:10]} 56. Bxe5 {[%emt 0:00:02]} Bb7 {[%emt 0:00:06]} 57. Ke3 {[%emt 0:00:10]} Bc6 {[%emt 0:00:11]} 58. Kd4 {[%emt 0:00:02]} Bb7 {[%emt 0:00:04]} 59. Bh2 {[%emt 0:00:13]} Kf6 {[%emt 0:00:06]} 60. e5+ {[%emt 0:00:04]} Ke6 {[%emt 0:00:06]} 61. Kxc4 {[%emt 0:00:02]} Bd5+ {[%emt 0:00:10]} 62. Kc5 {[%emt 0:00:01]} Ba8 {[%emt 0:00:08]} 63. c4 {[%emt 0:00:03]} Kd7 {[%emt 0:00:07]} 64. Kb6 {[%emt 0:00:05]} Kc8 {[%emt 0:00:16]} 65. c5 {[%emt 0:00:05]} Kd8 {[%emt 0:00:10]} 66. c6 {[%emt 0:00:03]} Kc8 {[%emt 0:00:07]} 67. e6 {[%emt 0:00:06]} Bxc6 {[%emt 0:00:12]} 68. Kxc6 {[%emt 0:00:03]} 1-0

[Event "African Online-ch Women 2021"]
[Site "Online"]
[Date "2021.02.01"]
[Round "3.7"]
[White "Francis, Onkemetse"]
[Black "Malehloa, Likhomo"]
[Result "1-0"]
[ECO "C02"]
[WhiteElo "1798"]
[BlackElo "1331"]
[Annotator "NA RC"]
[PlyCount "105"]
[EventDate "2021.02.01"]
[EventType "swiss"]
[EventCountry "NET"]
[SourceTitle "playchess.com"]
[Source "ChessBase"]
[SourceQuality "1"]
[TimeControl "1500+10"]

1. e4 {[%emt 0:00:00]} e6 {[%emt 0:00:10]} 2. d4 {[%emt 0:00:05]} d5 {[%emt 0:00:07]} 3. e5 {[%emt 0:00:18]} c5 {[%emt 0:00:06]} 4. c3 {[%emt 0:00:09]} Nc6 {[%emt 0:00:04]} 5. Nf3 {[%emt 0:00:14]} Qb6 {[%emt 0:00:06]} 6. Bd3 {[%emt 0:00:22]} Bd7 {[%emt 0:00:18]} 7. dxc5 {[%emt 0:00:10]} Bxc5 {[%emt 0:00:10]} 8. O-O {[%emt 0:00:03]} Qc7 {[%emt 0:00:16]} 9. Qe2 {[%emt 0:00:49]} Nge7 {[%emt 0:00:13]} 10. b4 {[%emt 0:01:52]} Bb6 {[%emt 0:00:18]} 11. a4 {[%emt 0:00:04]} a5 {[%emt 0:00:13]} 12. b5 {[%emt 0:00:22]} Nd8 {[%emt 0:00:52]} 13. Bb2 {[%emt 0:03:28]} Ng6 {[%emt 0:00:13]} 14. g3 {[%emt 0:00:15]} O-O {[%emt 0:00:13]} 15. Na3 {[%emt 0:00:25]} Qb8 {[%emt 0:00:38]} 16. c4 {[%emt 0:00:16]} dxc4 {[%emt 0:00:14]} 17. Nxc4 {[%emt 0:00:03]} Bc5 {[%emt 0:00:45]} 18. h4 {[%emt 0:00:18]} h6 {[%emt 0:01:56]} 19. Qe4 {[%emt 0:03:39]} h5 {[%emt 0:02:11]} 20. Qe2 {[%emt 0:02:52]} f5 {[%emt 0:00:20]} 21. Ng5 {[%emt 0:01:36]} Nf7 {[%emt 0:00:29]} 22. Qxh5 {[%emt 0:00:23]} Nxg5 {[%emt 0:00:05]} 23. hxg5 {[%emt 0:00:08]} Ne7 {[%emt 0:00:14]} 24. g6 {[%emt 0:00:08]} Nxg6 {[%emt 0:00:06]} 25. Qxg6 {[%emt 0:00:06]} b6 {[%emt 0:00:13]} 26. Nd6 {[%emt 0:00:36]} Bxd6 {[%emt 0:00:56]} 27. exd6 {[%emt 0:00:07]} Rf7 {[%emt 0:00:05]} 28. Be5 {[%emt 0:00:15]} Qb7 {[%emt 0:00:07]} 29. Rfe1 {[%emt 0:03:04]} Qd5 {[%emt 0:01:29]} 30. Bf1 {[%emt 0:00:18]} Qb3 {[%emt 0:00:41]} 31. Re3 {[%emt 0:00:50]} Qb4 {[%emt 0:00:42]} 32. Ree1 {[%emt 0:01:18]} Rc8 {[%emt 0:00:15]} 33. Bg2 {[%emt 0:00:36]} Rc2 {[%emt 0:01:44]} 34. Bc6 {[%emt 0:00:18]} Qd2 {[%emt 0:01:04]} 35. Rf1 {[%emt 0:00:09]} Bxc6 {[%emt 0:00:43]} 36. bxc6 {[%emt 0:00:03]} Rxc6 {[%emt 0:00:06]} 37. Qxe6 {[%emt 0:00:09]} Kf8 {[%emt 0:03:13]} 38. Rfd1 {[%emt 0:01:02]} Qg5 {[%emt 0:00:17]} 39. Bf4 {[%emt 0:00:22]} Qd8 {[%emt 0:00:41]} 40. Rac1 {[%emt 0:00:15]} Rxc1 {[%emt 0:00:20]} 41. Rxc1 {[%emt 0:00:03]} Rd7 {[%emt 0:00:28]} 42. Qxf5+ {[%emt 0:00:05]} Kg8 {[%emt 0:00:03]} 43. Qe6+ {[%emt 0:00:14]} Kf8 {[%emt 0:00:32]} 44. Qb3 {[%emt 0:00:15]} Rb7 {[%emt 0:01:18]} 45. Qb5 {[%emt 0:00:22]} Kg8 {[%emt 0:00:15]} 46. Qc6 {[%emt 0:00:09]} Rf7 {[%emt 0:01:04]} 47. Qc8 {[%emt 0:00:07]} Rd7 {[%emt 0:00:16]} 48. Qxd8+ {[%emt 0:00:03]} Rxd8 {[%emt 0:00:02]} 49. Rc6 {[%emt 0:00:05]} b5 {[%emt 0:00:06]} 50. axb5 {[%emt 0:00:03]} Ra8 {[%emt 0:00:04]} 51. d7 {[%emt 0:00:04]} a4 {[%emt 0:00:08]} 52. Rc8+ {[%emt 0:00:02]} Rxc8 {[%emt 0:00:03]} 53. dxc8=Q+ {[%emt 0:00:03]} 1-0

[Event "African Online-ch Women 2021"]
[Site "Online"]
[Date "2021.02.01"]
[Round "3.8"]
[White "Wanjiru, Lucy"]
[Black "Ibtihal Mohammed"]
[Result "1-0"]
[ECO "B32"]
[WhiteElo "1623"]
[BlackElo "1491"]
[Annotator "NA RC"]
[PlyCount "73"]
[EventDate "2021.02.01"]
[EventType "swiss"]
[EventCountry "NET"]
[SourceTitle "playchess.com"]
[Source "ChessBase"]
[SourceQuality "1"]
[TimeControl "1500+10"]

1. e4 {[%emt 0:00:00]} c5 {[%emt 0:00:05]} 2. Nc3 {[%emt 0:00:14]} Nc6 {[%emt 0:00:02]} 3. Nf3 {[%emt 0:00:25]} e6 {[%emt 0:00:06]} 4. d4 {[%emt 0:00:04]} a6 {[%emt 0:00:06]} 5. d5 {[%emt 0:00:24]} exd5 {[%emt 0:00:04]} 6. exd5 {[%emt 0:00:04]} Nce7 {[%emt 0:00:09]} 7. d6 {[%emt 0:00:03]} Ng6 {[%emt 0:00:02]} 8. Qe2+ {[%emt 0:00:04]} Be7 {[%emt 0:00:14]} 9. dxe7 {[%emt 0:00:05]} N8xe7 {[%emt 0:00:02]} 10. Qd1 {[%emt 0:01:27]} O-O {[%emt 0:00:06]} 11. Be2 {[%emt 0:00:02]} d5 {[%emt 0:00:09]} 12. O-O {[%emt 0:00:08]} d4 {[%emt 0:00:04]} 13. Ne4 {[%emt 0:00:03]} b6 {[%emt 0:00:05]} 14. Bg5 {[%emt 0:00:21]} Bb7 {[%emt 0:00:08]} 15. Ng3 {[%emt 0:00:19]} f6 {[%emt 0:00:17]} 16. Bd2 {[%emt 0:00:08]} Nd5 {[%emt 0:00:05]} 17. Bc4 {[%emt 0:00:06]} Kh8 {[%emt 0:00:08]} 18. Bxd5 {[%emt 0:00:56]} Qxd5 {[%emt 0:00:05]} 19. b3 {[%emt 0:02:19]} b5 {[%emt 0:01:16]} 20. c4 {[%emt 0:00:23]} bxc4 {[%emt 0:00:05]} 21. bxc4 {[%emt 0:00:02]} Qxc4 {[%emt 0:00:03]} 22. Rc1 {[%emt 0:00:10]} Qd5 {[%emt 0:00:04]} 23. Qc2 {[%emt 0:00:25]} Rac8 {[%emt 0:00:19]} 24. Qf5 {[%emt 0:01:42]} Ne5 {[%emt 0:00:11]} 25. Rb1 {[%emt 0:02:02]} g6 {[%emt 0:00:46]} 26. Qh3 {[%emt 0:01:28]} Nxf3+ {[%emt 0:00:12]} 27. gxf3 {[%emt 0:00:03]} Qxf3 {[%emt 0:00:05]} 28. Rb3 {[%emt 0:01:15]} d3 {[%emt 0:00:15]} 29. Rfb1 {[%emt 0:01:58]} Bd5 {[%emt 0:00:07]} 30. Rb6 {[%emt 0:01:44]} Rc6 {[%emt 0:01:18]} 31. Rb7 {[%emt 0:01:20]} h5 {[%emt 0:00:53]} 32. Re7 {[%emt 0:02:10]} Rd6 {[%emt 0:03:30]} 33. Re3 {[%emt 0:01:59]} Qf4 {[%emt 0:02:12]} 34. Rxd3 {[%emt 0:00:32]} Qa4 {[%emt 0:00:23]} 35. Re1 {[%emt 0:01:22]} Kg7 {[%emt 0:01:34]} 36. Nxh5+ {[%emt 0:00:19]} gxh5 {[%emt 0:00:16]} 37. Rg3+ {[%emt 0:00:45]} 1-0